bitfinex/quotes_ETHUSD_20250322
["timestamp","ask_amount","ask_price","bid_price","bid_amount"]
[1742660372431,5.02819,1988.8,1988.7,4.643]
[1742660373810,10.05517,1989.1,1988.7,4.643]
[1742660374016,5.02774,1989.0,1988.8,0.05027763]
[1742660374215,0.10638502,1989.0,1988.8,3.068274]
[1742660374512,0.10638502,1989.0,1988.9,2.568274]
[1742660375232,5.02719,1989.2,1988.8,8.096294]
[1742660375436,0.10638502,1989.0,1988.9,0.8096294]
[1742660375737,5.02719,1989.2,1988.9,3.3779034]
[1742660376043,0.10734111,1989.1,1988.9,3.3779034]
[1742660376205,0.10734111,1989.1,1988.9,8.4057434]
[1742660376538,5.02719,1989.2,1988.9,8.4057434]
[1742660376721,0.10742619,1989.1,1989.0,0.84057434]
[1742660377728,0.10742619,1989.1,1989.0,0.89084476]
[1742660378129,0.10742619,1989.1,1989.0,0.84057434]
[1742660378330,10.83008,1989.3,1989.0,0.84057434]
[1742660378642,0.10884178,1989.2,1989.1,4.643]
[1742660378848,0.10884178,1989.2,1989.1,31.77235743]
[1742660383453,5.13598178,1989.2,1989.1,31.77235743]
[1742660398462,5.13598178,1989.2,1989.1,31.224]
[1742660401150,0.10884178,1989.2,1989.1,31.224]
[1742660401464,0.10884178,1989.2,1989.1,34.292274]
[1742660401760,5.02614,1989.6,1989.1,34.292274]
[1742660401761,5.02571,1989.8,1989.4,5.02656]
[1742660401964,0.87215784,1989.9,1989.5,4.641]
[1742660402163,5.02574,1989.8,1989.5,4.641]
[1742660402337,5.02574,1989.8,1989.5,8.4328534]
[1742660404041,5.02574,1989.8,1989.5,9.44318727]
[1742660404876,5.02574,1989.8,1989.5,8.4328534]
[1742660406976,5.89754784,1989.9,1989.5,10.8909294]
[1742660407187,5.08494784,1989.9,1989.6,2.568274]
[1742660407349,5.08494784,1989.9,1989.7,0.2568274]
[1742660409246,0.05955784,1989.9,1989.7,0.2568274]
[1742660409572,5.08495784,1989.9,1989.8,26.572]
[1742660414345,8.53015309,1989.9,1989.8,26.572]
[1742660414552,5.84023,1989.6,1989.5,4.64]
[1742660414751,11.03961092,1989.6,1989.5,4.64]
[1742660414984,10.976778,1989.6,1989.5,4.64]
[1742660417155,10.11766218,1989.6,1989.5,4.64]
[1742660417455,10.18049696,1989.6,1989.5,4.64]
[1742660417656,11.70114166,1989.6,1989.5,4.64]
[1742660417856,11.63830688,1989.6,1989.5,4.64]
[1742660418360,5.84099,1989.3,1989.2,31.217]
[1742660418568,10.18126167,1989.3,1989.2,31.217]
[1742660420591,10.18126167,1989.3,1989.2,26.57]
[1742660420769,11.70205784,1989.3,1989.2,26.57]
[1742660420963,11.63921835,1989.3,1989.2,26.57]
[1742660425497,10.11842218,1989.3,1989.2,26.57]
[1742660425705,10.18126469,1989.3,1989.2,26.57]
[1742660430695,0.8245,1989.1,1988.8,4.649]
[1742660430860,5.02841,1988.7,1988.6,26.579]
[1742660431060,5.09126669,1988.7,1988.6,31.231]
[1742660431459,9.36869887,1988.7,1988.6,31.231]
[1742660431883,9.601988,1988.7,1988.6,26.579]
[1742660432088,9.601988,1988.7,1988.6,31.231]
[1742660432604,9.53913131,1988.7,1988.6,31.231]
[1742660432892,5.26169913,1988.7,1988.6,31.231]
[1742660438470,0.23328913,1988.7,1988.6,31.731]
[1742660438669,10.05604,1988.9,1988.6,31.731]
[1742660438897,0.2322076,1988.7,1988.6,31.731]
[1742660439081,5.02801,1988.9,1988.6,31.731]
[1742660439291,0.23219373,1988.7,1988.6,31.731]
[1742660439507,5.02801,1988.9,1988.6,31.731]
[1742660439683,0.23219373,1988.7,1988.6,31.731]
[1742660439884,5.02801,1988.9,1988.6,31.731]
[1742660440397,0.23254559,1988.8,1988.6,31.731]
[1742660440604,10.05613,1988.9,1988.6,31.731]
[1742660440900,0.23254559,1988.8,1988.6,31.731]
[1742660441299,9.30505218,1989.1,1988.6,31.731]
[1742660441506,9.30505218,1989.1,1988.7,0.5]
[1742660441507,5.02773,1989.0,1988.7,0.5]
[1742660442420,5.02773,1989.0,1988.7,5.5284]
[1742660442585,5.02773,1989.0,1988.7,0.5]
[1742660442776,5.0274,1989.1,1988.7,0.5]
[1742660443107,5.0274,1989.1,1988.8,0.5]
[1742660445412,5.02702,1989.3,1988.9,5.57817412]
[1742660445609,5.02664,1989.4,1989.1,0.5]
[1742660445778,5.02664,1989.4,1989.1,0.55026827]
[1742660445970,5.02664,1989.4,1989.1,0.55026872]
[1742660446175,10.05347,1989.4,1989.1,0.55026872]
[1742660446409,10.05347,1989.4,1989.1,0.5]
[1742660446605,10.05347,1989.4,1989.1,1.07148174]
[1742660446812,5.02691,1989.3,1989.1,1.07148174]
[1742660448711,5.02664,1989.4,1989.1,1.12175068]
[1742660448913,5.02664,1989.4,1989.1,1.07148174]
[1742660449111,0.23496996,1989.3,1989.1,1.07148174]
[1742660449436,5.02664,1989.4,1989.1,1.07148174]
[1742660449585,0.23496996,1989.3,1989.1,1.07148174]
[1742660449780,5.02664,1989.4,1989.1,1.07148174]
[1742660449980,0.23496996,1989.3,1989.1,1.07148174]
[1742660450281,5.02664,1989.4,1989.1,1.07148174]
[1742660450510,0.23461828,1989.2,1989.1,1.07148174]
[1742660450709,5.02664,1989.4,1989.1,1.07148174]
[1742660450913,0.23461828,1989.2,1989.1,1.07148174]
[1742660451516,10.05351,1989.4,1989.1,1.07148174]
[1742660451724,0.23461828,1989.2,1989.1,1.07148174]
[1742660451885,5.02701,1989.3,1989.1,1.07148174]
[1742660452081,0.23461828,1989.2,1989.1,1.07148174]
[1742660454539,0.23461828,1989.2,1989.1,27.64848174]
[1742660456642,5.26175828,1989.2,1989.1,31.23]
[1742660458059,0.23461828,1989.2,1989.1,31.73]
[1742660459251,0.23513123,1989.2,1989.1,31.73]
[1742660459440,5.02665,1989.4,1989.1,31.73]
[1742660459642,0.23548292,1989.3,1989.1,31.73]
[1742660459952,10.05347,1989.4,1989.1,31.73]
[1742660460156,0.23513123,1989.2,1989.1,31.73]
[1742660460317,12.61986837,1989.4,1989.1,31.73]
[1742660460520,0.23513123,1989.2,1989.1,31.73]
[1742660460743,12.61986837,1989.4,1989.1,31.73]
[1742660460945,0.23513123,1989.2,1989.1,31.73]
[1742660461140,10.05347,1989.4,1989.1,31.73]
[1742660461334,0.23513123,1989.2,1989.1,31.73]
[1742660461545,10.05347,1989.4,1989.1,31.73]
[1742660461748,0.23513123,1989.2,1989.1,31.73]
[1742660462363,10.05353,1989.4,1989.1,31.73]
[1742660462568,0.23513123,1989.2,1989.1,31.73]
[1742660463061,5.02665,1989.4,1989.1,31.73]
[1742660463250,0.23513123,1989.2,1989.1,31.73]
[1742660463452,5.02665,1989.4,1989.1,31.73]
[1742660463650,0.23548292,1989.3,1989.1,31.73]
[1742660463851,5.02617,1989.6,1989.3,0.5]
[1742660464033,0.23618617,1989.5,1989.4,26.575]
[1742660464357,5.81295,1989.8,1989.4,31.23]
[1742660464558,5.02542,1989.9,1989.5,5.02637]
[1742660464751,0.23688928,1989.7,1989.6,0.55025698]
[1742660464950,5.02542,1989.9,1989.6,0.5]
[1742660465149,5.02512,1990.0,1989.6,5.52611]
[1742660465363,0.23724079,1989.8,1989.6,5.52611]
[1742660465662,5.02512,1990.0,1989.7,0.552611]
[1742660465842,5.02512,1990.0,1989.8,4.661]
[1742660467352,5.02537,1989.9,1989.8,4.661]
[1742660475944,5.0252,1990.0,1989.8,4.661]
[1742660477389,5.02537,1989.9,1989.8,4.661]
[1742660478441,5.02568,1989.8,1989.5,1.00911057]
[1742660478646,5.02568,1989.8,1989.6,4.652]
[1742660479146,0.23758228,1989.7,1989.6,4.652]
[1742660479346,0.23758228,1989.7,1989.6,31.22]
[1742660479777,0.23758228,1989.7,1989.6,31.72]
[1742660480159,5.02546,1989.9,1989.6,31.72]
[1742660480360,5.02566,1989.8,1989.6,31.72]
[1742660480563,5.26359379,1989.8,1989.6,31.72]
[1742660484961,0.23793379,1989.8,1989.6,31.72]
[1742660485356,5.02546,1989.9,1989.6,31.72]
[1742660485557,0.23758228,1989.7,1989.6,31.72]
[1742660485800,5.02546,1989.9,1989.6,31.72]
[1742660485994,0.23758228,1989.7,1989.6,31.72]
[1742660486455,5.02516,1990.0,1989.6,36.74603]
[1742660486655,0.23828526,1989.9,1989.6,36.74603]
[1742660487087,0.23828526,1989.9,1989.6,39.31020052]
[1742660488226,0.23828526,1989.9,1989.7,7.59002052]
[1742660488376,0.23828526,1989.9,1989.8,3.06417052]
[1742660488575,5.0864559,1990.2,1989.8,8.14004851]
[1742660488805,0.23675268,1989.9,1989.8,3.11441851]
[1742660488976,10.1112959,1990.2,1989.8,3.92844536]
[1742660489175,0.23675268,1989.9,1989.8,1.36427484]
[1742660489376,10.1112959,1990.2,1989.8,1.36427484]
[1742660489575,0.23675268,1989.9,1989.8,1.73393653]
[1742660489814,5.0249,1990.1,1989.8,1.68368854]
[1742660490015,0.23675268,1989.9,1989.8,1.68368854]
[1742660490216,5.0249,1990.1,1989.8,1.7339366]
[1742660490717,0.23710411,1990.0,1989.8,1.7339366]
[1742660491589,10.1112559,1990.2,1989.8,1.7339366]
[1742660491789,0.23708537,1989.9,1989.8,1.7339366]
[1742660491989,10.1112559,1990.2,1989.8,1.7339366]
[1742660492191,0.2373626,1989.9,1989.8,6.70931854]
[1742660492392,5.02488,1990.1,1989.8,1.68368854]
[1742660492628,0.2373626,1989.9,1989.8,1.68368854]
[1742660492828,5.02488,1990.1,1989.8,1.68368854]
[1742660493337,0.23812959,1990.0,1989.8,1.68368854]
[1742660493686,5.26335959,1990.0,1989.8,0.81402685]
[1742660493885,5.02546,1989.9,1989.7,3.0]
[1742660494121,0.23750992,1989.8,1989.7,3.36821344]
[1742660494486,10.80754,1990.0,1989.7,3.36821344]
[1742660494730,5.26425682,1989.9,1989.7,3.36821344]
[1742660497832,5.26425682,1989.9,1989.6,26.568]
[1742660497990,5.26425682,1989.9,1989.7,4.646]
[1742660499928,10.28986682,1989.9,1989.7,4.646]
[1742660500153,10.06161993,1989.8,1989.7,31.212]
[1742660500440,10.06161993,1989.8,1989.7,31.213]
[1742660500638,10.36297723,1989.8,1989.7,31.213]
[1742660500835,10.30015532,1989.8,1989.7,31.213]
[1742660503603,6.02716539,1989.8,1989.7,31.213]
[1742660505224,6.08998932,1989.8,1989.7,31.213]
[1742660505428,6.02716539,1989.8,1989.7,31.213]
[1742660505927,6.08998932,1989.8,1989.7,31.213]
[1742660506607,6.02716539,1989.8,1989.7,31.213]
[1742660506808,6.08998931,1989.8,1989.7,31.213]
[1742660507228,6.02716539,1989.8,1989.7,31.213]
[1742660507928,0.23853539,1989.8,1989.7,31.213]
[1742660508301,5.0254,1989.9,1989.7,31.213]
[1742660508499,0.23917333,1989.8,1989.7,31.213]
[1742660508698,5.02512,1990.0,1989.7,31.213]
[1742660508921,0.23919245,1989.9,1989.7,31.213]
[1742660509725,0.23919245,1989.9,1989.7,36.23888]
[1742660510301,0.23919245,1989.9,1989.7,31.213]
[1742660512333,0.23919245,1989.9,1989.7,36.23888]
[1742660512751,5.02488,1990.1,1989.7,36.23888]
[1742660512954,5.02488,1990.1,1989.8,0.5]
[1742660513153,5.0863659,1990.2,1989.8,5.57577939]
[1742660513348,10.1111159,1990.2,1989.8,5.52553]
[1742660513531,5.0863659,1990.2,1989.8,5.52553]
[1742660514248,0.0617459,1990.2,1990.0,0.5]
[1742660514422,0.0617459,1990.2,1990.1,4.69824291]
[1742660514621,0.0617459,1990.2,1990.1,5.67032729]
[1742660515235,0.0617459,1990.2,1990.1,10.69519729]
[1742660516147,0.0617459,1990.2,1990.1,5.67032729]
[1742660520231,5.3291337,1990.2,1990.1,5.67032729]
[1742660520654,0.3045137,1990.2,1990.1,4.648]
[1742660521560,0.3045137,1990.2,1990.1,31.211]
[1742660522862,5.3291337,1990.2,1990.1,26.563]
[1742660523039,5.3291337,1990.2,1990.1,31.21]
[1742660533777,5.3291337,1990.2,1990.1,26.563]
[1742660534078,5.3291337,1990.2,1990.1,31.206]
[1742660537200,7.89316273,1990.2,1990.1,31.206]
[1742660541084,7.89316273,1990.2,1990.1,31.203]
[1742660542556,5.3291337,1990.2,1990.1,31.203]
[1742660549712,0.3045137,1990.2,1990.1,31.203]
[1742660549923,0.3045137,1990.2,1990.1,31.703]
[1742660552338,0.3045137,1990.2,1990.1,39.29189903]
[1742660552488,0.3045137,1990.2,1990.1,36.72787]
[1742660552688,0.3045137,1990.2,1990.1,39.29189903]
[1742660553389,0.3045137,1990.2,1990.1,34.26702903]
[1742660554609,0.3045137,1990.2,1990.1,39.29189903]
[1742660555923,0.3045137,1990.2,1990.1,31.703]
[1742660556433,0.3045137,1990.2,1990.1,32.72210635]
[1742660556932,0.3045137,1990.2,1990.1,37.74697635]
[1742660557732,0.3045137,1990.2,1990.1,40.31100538]
[1742660558091,0.0617459,1990.2,1990.1,40.86100538]
[1742660560625,0.0617459,1990.2,1990.1,43.86100538]
[1742660576572,0.0617459,1990.2,1990.1,49.42503441]
[1742660577649,0.0617459,1990.2,1990.1,46.86100538]
[1742660579055,0.0617459,1990.2,1990.1,49.42503441]
[1742660580269,0.0617459,1990.2,1990.1,46.86100538]
[1742660582872,0.0617459,1990.2,1990.1,49.42503441]
[1742660584974,0.0617459,1990.2,1990.1,49.5169178]
[1742660586747,0.0617459,1990.2,1990.1,59.7669178]
[1742660592703,5.9e-06,1990.2,1990.1,54.8179178]
[1742660592907,0.8283,1991.2,1990.8,0.55]
[1742660593200,0.8283,1991.2,1990.9,38.77976903]
[1742660593784,0.21488574,1991.1,1991.0,5.0226]
[1742660594306,0.8283,1991.2,1990.9,38.77976903]
[1742660594709,0.8283,1991.2,1991.0,2.56402903]
[1742660594911,0.21496882,1991.1,1991.0,2.56402903]
[1742660595439,0.8283,1991.2,1991.0,4.0820549]
[1742660595578,0.21496882,1991.1,1990.9,38.77972903]
[1742660595904,0.8283,1991.2,1990.9,38.77972903]
[1742660596106,1.04300093,1991.0,1990.9,26.555]
[1742660596310,0.8283,1991.0,1990.9,31.195]
[1742660596510,1.04200516,1991.0,1990.9,33.75902903]
[1742660597310,1.04200516,1991.0,1990.9,31.195]
[1742660597710,6.06460516,1991.0,1990.9,26.555]
[1742660597884,7.42971458,1991.0,1990.9,31.196]
[1742660599285,6.06460516,1991.0,1990.9,31.196]
[1742660603917,1.04200516,1991.0,1990.9,31.196]
[1742660606022,1.04200516,1991.0,1990.9,38.78287903]
[1742660606215,0.8081,1991.2,1990.9,43.80572903]
[1742660606411,0.8081,1991.2,1991.0,2.61425001]
[1742660606603,0.21457411,1991.1,1991.0,2.61425001]
[1742660607022,0.8081,1991.2,1990.9,43.80572903]
[1742660607215,0.21469863,1991.1,1990.9,43.80572903]
[1742660607727,0.21434758,1991.0,1990.9,38.78287903]
[1742660608124,0.8081,1991.2,1990.9,43.80560903]
[1742660608441,0.21426448,1991.0,1990.9,43.80560903]
[1742660608641,0.8081,1991.2,1990.9,43.80560903]
[1742660609236,0.21461553,1991.1,1990.9,38.78275903]
[1742660609647,5.83022,1991.2,1990.9,38.78275903]
[1742660609943,5.83022,1991.2,1990.9,36.21873]
[1742660610108,0.21469863,1991.1,1990.9,36.21873]
[1742660610505,0.8081,1991.2,1990.9,38.78275903]
[1742660610717,0.21434758,1991.0,1990.9,38.78275903]
[1742660610937,0.8081,1991.2,1990.9,38.78275903]
[1742660611133,0.21434758,1991.0,1990.9,38.78275903]
[1742660611431,0.8081,1991.2,1990.9,38.78275903]
[1742660611928,0.21482313,1991.1,1990.9,38.78275903]
[1742660612422,0.8081,1991.2,1990.9,36.21873]
[1742660612629,0.21447208,1991.0,1990.9,36.21873]
[1742660612829,5.83022,1991.2,1990.9,31.196]
[1742660612998,0.21447208,1991.0,1990.9,26.555]
[1742660613200,0.8265,1991.1,1990.9,31.195]
[1742660613395,0.21447208,1991.0,1990.9,31.195]
[1742660613599,0.21447208,1991.0,1990.9,36.21785]
[1742660613828,5.84839,1991.3,1990.9,36.21785]
[1742660614140,0.21517413,1991.2,1990.9,36.21785]
[1742660615437,0.21517413,1991.2,1990.9,41.24052]
[1742660615644,0.21517413,1991.2,1990.9,43.80454903]
[1742660615961,0.21517413,1991.2,1991.0,5.02255]
[1742660616365,0.21517413,1991.2,1991.1,26.549]
[1742660622642,0.21517413,1991.2,1991.1,34.13536903]
[1742660622942,0.21578321,1991.2,1991.1,34.13536903]
[1742660623249,5.02162,1991.4,1991.1,31.57134]
[1742660623449,0.21578321,1991.2,1991.1,31.57134]
[1742660623946,5.02162,1991.4,1991.1,31.57134]
[1742660624153,0.21578321,1991.2,1991.1,31.57134]
[1742660624336,5.02162,1991.4,1991.1,26.549]
[1742660624535,0.21578321,1991.2,1991.1,26.549]
[1742660624746,5.02162,1991.4,1991.1,26.549]
[1742660624947,0.21578321,1991.2,1991.1,26.549]
[1742660625127,5.02162,1991.4,1991.1,26.549]
[1742660625463,5.02162,1991.4,1991.1,31.57133]
[1742660625774,0.2161895,1991.3,1991.1,31.57133]
[1742660625975,5.02162,1991.4,1991.1,31.57133]
[1742660626141,0.21583854,1991.2,1991.1,31.57133]
[1742660626337,5.02162,1991.4,1991.1,31.57133]
[1742660626537,0.21583854,1991.2,1991.1,31.57133]
[1742660626738,5.02162,1991.4,1991.1,26.549]
[1742660626968,0.21583854,1991.2,1991.1,26.549]
[1742660627164,5.02162,1991.4,1991.1,26.549]
[1742660627369,0.21582471,1991.2,1991.1,26.549]
[1742660627569,5.02162,1991.4,1991.1,26.549]
[1742660627772,0.21582471,1991.2,1991.1,26.549]
[1742660628067,5.02162,1991.4,1991.1,26.549]
[1742660628541,0.21617566,1991.3,1991.1,26.549]
[1742660628738,5.02162,1991.4,1991.1,26.549]
[1742660628952,0.21582471,1991.2,1991.1,26.549]
[1742660629139,5.79645,1991.3,1991.1,26.549]
[1742660629341,0.21582471,1991.2,1991.1,26.549]
[1742660632174,5.79655,1991.3,1991.1,26.549]
[1742660632373,0.21619863,1991.2,1991.1,26.549]
[1742660634761,0.7746,1991.3,1991.1,26.549]
[1742660635163,0.21604647,1991.2,1991.1,26.549]
[1742660636157,0.21604647,1991.2,1991.1,31.57134]
[1742660636486,5.02167,1991.4,1991.1,31.57134]
[1742660636788,0.21639741,1991.3,1991.1,31.57134]
[1742660637175,5.02167,1991.4,1991.1,31.57134]
[1742660637391,0.21604647,1991.2,1991.1,31.57134]
[1742660637559,5.02167,1991.4,1991.1,31.57134]
[1742660637905,5.02167,1991.4,1991.1,26.549]
[1742660638068,0.21639741,1991.3,1991.1,26.549]
[1742660638260,5.02167,1991.4,1991.1,26.549]
[1742660638615,0.21650807,1991.3,1991.1,26.549]
[1742660638894,5.02167,1991.4,1991.1,26.549]
[1742660639203,0.21650807,1991.3,1991.1,26.549]
[1742660639568,5.02167,1991.4,1991.1,26.549]
[1742660639771,0.21647568,1991.2,1991.1,26.549]
[1742660642309,5.23856568,1991.2,1991.1,26.549]
[1742660644604,8.67457409,1991.2,1991.1,26.549]
[1742660644778,8.67457409,1991.2,1991.1,31.186]
[1742660646611,8.61179471,1991.2,1991.1,31.186]
[1742660647699,8.67457487,1991.2,1991.1,31.186]
[1742660647911,10.04422336,1991.2,1991.1,31.186]
[1742660650120,7.41741417,1991.2,1991.1,31.186]
[1742660650287,6.04776568,1991.2,1991.1,31.186]
[1742660651223,0.21647568,1991.2,1991.1,31.186]
[1742660651610,5.8301,1991.4,1991.1,31.186]
[1742660651925,5.02209,1991.2,1991.1,31.186]
[1742660652126,5.23849652,1991.2,1991.1,31.186]
[1742660656123,0.21640652,1991.2,1991.1,31.186]
[1742660656931,0.21640652,1991.2,1991.1,31.686]
[1742660657136,5.02167,1991.4,1991.1,31.686]
[1742660657312,0.21675744,1991.3,1991.1,31.686]
[1742660657501,5.02167,1991.4,1991.1,31.686]
[1742660657698,0.21675744,1991.3,1991.1,31.686]
[1742660657902,5.02167,1991.4,1991.1,31.686]
[1742660658133,0.21675744,1991.3,1991.1,31.686]
[1742660658316,5.02167,1991.4,1991.1,31.686]
[1742660658522,0.21675744,1991.3,1991.1,31.686]
[1742660658704,5.02167,1991.4,1991.1,31.686]
[1742660658900,0.21693727,1991.3,1991.1,31.686]
[1742660659115,5.02167,1991.4,1991.1,31.686]
[1742660659435,0.21696493,1991.3,1991.1,31.686]
[1742660659936,5.02167,1991.4,1991.1,31.686]
[1742660660102,0.21696493,1991.3,1991.1,31.686]
[1742660660304,5.02167,1991.4,1991.1,31.686]
[1742660660629,0.21696493,1991.3,1991.1,31.686]
[1742660660834,0.21696493,1991.3,1991.1,34.25002903]
[1742660661130,0.21661401,1991.2,1991.1,39.82228903]
[1742660661336,5.02144,1991.5,1991.1,39.82228903]
[1742660661533,0.21731581,1991.4,1991.1,39.82228903]
[1742660663614,0.21731581,1991.4,1991.1,39.82221903]
[1742660663815,0.21731581,1991.4,1991.2,5.02199]
[1742660664019,5.0214,1991.5,1991.2,5.02199]
[1742660664020,5.0214,1991.5,1991.2,0.37384786]
[1742660664247,0.21696493,1991.3,1991.1,39.82229903]
[1742660664448,5.0214,1991.5,1991.1,39.82213903]
[1742660664648,0.21661401,1991.2,1991.1,39.82213903]
[1742660664826,5.0214,1991.5,1991.1,39.82213903]
[1742660665228,0.21731581,1991.4,1991.1,39.82213903]
[1742660666222,5.23891581,1991.4,1991.1,37.25811]
[1742660666765,5.23891581,1991.4,1991.1,39.82213903]
[1742660667255,5.23891581,1991.4,1991.1,37.25811]
[1742660668929,5.23891581,1991.4,1991.1,39.82213903]
[1742660669661,0.21731581,1991.4,1991.1,39.82213903]
[1742660673827,0.21731581,1991.4,1991.2,26.545]
[1742660673828,5.23891581,1991.4,1991.2,26.545]
[1742660677146,5.02184,1991.3,1991.2,26.545]
[1742660677465,5.23904001,1991.3,1991.2,26.545]
[1742660678065,0.21720001,1991.3,1991.2,26.545]
[1742660678370,5.0216,1991.4,1991.2,26.545]
[1742660678664,0.21720001,1991.3,1991.2,0.37096157]
[1742660678863,0.21720001,1991.3,1991.2,26.545]
[1742660679366,5.0216,1991.4,1991.2,26.545]
[1742660679570,0.21720001,1991.3,1991.2,26.545]
[1742660679969,5.0216,1991.4,1991.2,26.545]
[1742660680138,0.21720001,1991.3,1991.2,26.545]
[1742660680339,5.0216,1991.4,1991.2,26.545]
[1742660680663,0.21720001,1991.3,1991.2,26.545]
[1742660680973,10.04338,1991.4,1991.2,26.545]
[1742660681173,0.21720001,1991.3,1991.2,26.545]
[1742660681570,10.04338,1991.4,1991.2,26.545]
[1742660681867,0.21720001,1991.3,1991.2,26.545]
[1742660682169,5.0216,1991.4,1991.2,26.545]
[1742660682369,0.21720001,1991.3,1991.2,26.545]
[1742660682770,5.0216,1991.4,1991.2,26.545]
[1742660682950,0.21728301,1991.3,1991.2,26.545]
[1742660683275,5.0216,1991.4,1991.2,26.545]
[1742660683460,0.21728301,1991.3,1991.2,26.92723862]
[1742660683852,5.0216,1991.4,1991.2,26.92723862]
[1742660684054,0.21710326,1991.3,1991.2,26.92723862]
[1742660684371,5.0216,1991.4,1991.2,26.92723862]
[1742660684563,0.21710326,1991.3,1991.2,26.92723862]
[1742660684763,5.0216,1991.4,1991.2,26.92723862]
[1742660684941,0.21710326,1991.3,1991.2,26.92723862]
[1742660685142,5.0216,1991.4,1991.2,26.92723862]
[1742660685342,0.21710326,1991.3,1991.2,26.92723862]
[1742660685572,5.0216,1991.4,1991.2,26.92723862]
[1742660685774,0.21710326,1991.3,1991.2,26.92723862]
[1742660686171,5.0216,1991.4,1991.2,26.92723862]
[1742660686372,0.21710326,1991.3,1991.2,26.92723862]
[1742660686874,5.0216,1991.4,1991.2,26.92723862]
[1742660687077,0.21708943,1991.3,1991.2,26.92723862]
[1742660687438,5.0216,1991.4,1991.2,26.92723862]
[1742660687640,0.21708943,1991.3,1991.2,26.92723862]
[1742660688051,5.0216,1991.4,1991.2,26.92723862]
[1742660688253,0.21708943,1991.3,1991.2,26.92723862]
[1742660688653,5.0216,1991.4,1991.2,26.92723862]
[1742660688849,0.21708943,1991.3,1991.2,26.92723862]
[1742660689263,5.0216,1991.4,1991.2,26.92723862]
[1742660689581,0.21708943,1991.3,1991.2,26.92723862]
[1742660690399,5.0216,1991.4,1991.2,26.92723862]
[1742660690677,0.21708943,1991.3,1991.2,26.92723862]
[1742660690851,0.21708943,1991.3,1991.2,27.42723862]
[1742660691050,5.02136,1991.5,1991.2,27.42723862]
[1742660691250,0.21708943,1991.3,1991.2,27.42723862]
[1742660691450,5.02136,1991.5,1991.2,27.42723862]
[1742660691646,5.82959,1991.6,1991.2,32.44932862]
[1742660691647,0.21708943,1991.3,1991.2,32.44932862]
[1742660691848,5.02138,1991.5,1991.2,32.44932862]
[1742660692170,0.21744031,1991.4,1991.2,32.44932862]
[1742660693291,0.21744031,1991.4,1991.3,0.55]
[1742660693695,5.82971,1991.6,1991.3,0.55]
[1742660693881,0.21744031,1991.4,1991.3,0.55]
[1742660694058,5.82971,1991.6,1991.3,0.55]
[1742660694259,0.21744031,1991.4,1991.3,0.55]
[1742660694454,5.82971,1991.6,1991.3,0.55]
[1742660694658,0.21744031,1991.4,1991.3,0.55]
[1742660694874,5.82971,1991.6,1991.3,0.55]
[1742660695088,0.21744031,1991.4,1991.3,0.55]
[1742660695269,5.82971,1991.6,1991.3,0.55]
[1742660695474,0.21744031,1991.4,1991.3,0.55]
[1742660695983,5.82971,1991.6,1991.3,0.55]
[1742660696183,0.21744031,1991.4,1991.3,0.55]
[1742660696382,5.82971,1991.6,1991.3,0.55]
[1742660696584,0.21744031,1991.4,1991.3,0.55]
[1742660696792,5.82971,1991.6,1991.3,27.095]
[1742660696994,0.21753714,1991.4,1991.3,27.095]
[1742660697168,5.82971,1991.6,1991.3,27.095]
[1742660697492,0.21788799,1991.5,1991.3,27.095]
[1742660699997,5.23924799,1991.5,1991.3,27.095]
[1742660701298,0.21788799,1991.5,1991.3,27.095]
[1742660701470,0.21788799,1991.5,1991.3,30.15902903]
[1742660701665,0.21788799,1991.5,1991.3,35.18061903]
[1742660701866,5.02087,1991.7,1991.3,35.18061903]
[1742660702096,0.21753714,1991.4,1991.3,35.18061903]
[1742660702403,0.19940905,1991.4,1991.3,35.18061903]
[1742660702867,5.02119,1991.6,1991.3,30.15902903]
[1742660703062,0.19940905,1991.4,1991.3,30.15902903]
[1742660703267,10.04193,1991.7,1991.3,35.18077903]
[1742660703468,5.02087,1991.7,1991.4,0.55]
[1742660703668,5.02087,1991.7,1991.5,4.636]
[1742660703669,0.20011071,1991.6,1991.5,4.636]
[1742660703993,5.02087,1991.7,1991.5,4.636]
[1742660704468,0.20011071,1991.6,1991.5,4.636]
[1742660705299,0.20011071,1991.6,1991.5,5.186]
[1742660705463,0.20011071,1991.6,1991.5,6.4631469]
[1742660705668,5.89124784,1991.8,1991.5,6.4631469]
[1742660705875,0.05955784,1991.8,1991.7,5.57083]
[1742660706194,0.05955784,1991.8,1991.6,2.56402903]
[1742660706195,0.05955784,1991.8,1991.6,5.02085]
[1742660706397,0.05955784,1991.8,1991.7,0.502085]
[1742660706598,5.08013784,1991.8,1991.6,0.55]
[1742660707094,0.05955784,1991.8,1991.6,0.55]
[1742660707300,0.87065784,1991.8,1991.6,0.55]
[1742660708601,5.89124784,1991.8,1991.6,0.55]
[1742660709313,0.87065784,1991.8,1991.6,0.55]
[1742660709606,0.8111,1991.7,1991.4,5.02145]
[1742660709775,0.8111,1991.7,1991.5,5.186]
[1742660710105,0.8111,1991.7,1991.5,6.20007232]
[1742660711277,0.8111,1991.7,1991.6,26.542]
[1742660712207,5.83193,1991.7,1991.6,26.542]
[1742660712577,0.8111,1991.7,1991.6,26.542]
[1742660713700,0.99575677,1991.7,1991.6,26.542]
[1742660715232,6.01658677,1991.7,1991.6,26.542]
[1742660720930,0.99575677,1991.7,1991.6,26.542]
[1742660726334,9.73594608,1991.7,1991.6,26.542]
[1742660734361,12.29997511,1991.7,1991.6,26.542]
[1742660734518,15.23721029,1991.7,1991.6,26.542]
[1742660736119,12.67318126,1991.7,1991.6,26.542]
[1742660738057,15.23721029,1991.7,1991.6,26.542]
[1742660741782,12.67318126,1991.7,1991.6,26.542]
[1742660742971,5.77774,1991.1,1991.0,26.548]
[1742660743186,6.02151543,1991.1,1991.0,31.184]